{"text_format":"3","workbook":"xlsx","n_sheets":3,"sheets":["Aufgaben","Monatsansicht","Wochenansicht"],"not_rendered":{"images":4,"defined_names":16},"read":"whole","date_system":"1900"}

{"sheet":"Aufgaben","index":0,"n_rows":15,"n_cols":3,"rows_kept":15}
[null,"MONATSANSICHT","WOCHENANSICHT"]
[null," AUFGABEN"]
[null,"BESCHREIBUNG","FÄLLIGKEITSDATUM"]
[null,"Aufgabe 1",{"$f":"TODAY()","v":"2022-12-09"}]
[null,"Aufgabe 2",{"$f":"TODAY()+15","v":"2022-12-24"}]
[null,"Aufgabe 3",{"$f":"TODAY()+30","v":"2023-01-08"}]
[null,"Aufgabe 4",{"$f":"TODAY()+45","v":"2023-01-23"}]
[null,"Aufgabe 5",{"$f":"TODAY()+60","v":"2023-02-07"}]
[null,"Aufgabe 6",{"$f":"TODAY()+75","v":"2023-02-22"}]
[null,"Aufgabe 7",{"$f":"TODAY()+90","v":"2023-03-09"}]
[null,"Aufgabe 8",{"$f":"TODAY()+105","v":"2023-03-24"}]
[null,"Aufgabe 9",{"$f":"TODAY()+115","v":"2023-04-03"}]
[null,"Aufgabe 10",{"$f":"TODAY()+130","v":"2023-04-18"}]
[null,"Aufgabe 11",{"$f":"TODAY()+145","v":"2023-05-03"}]
[null,"Aufgabe 12",{"$f":"TODAY()+160","v":"2023-05-18"}]

{"sheet":"Monatsansicht","index":1,"n_rows":17,"n_cols":8,"rows_kept":17}
[null,"AUFGABEN","WOCHENANSICHT"]
[null,"Monat auswählen:","Jahr eingeben:"]
[null,{"$f":"TEXT(TODAY(),\"MMMM\")","v":"Dezember"},{"$f":"YEAR(TODAY())","v":2022}]
[null," MONATSANSICHT"]
[null,"MONTAG","DIENSTAG","MITTWOCH","DONNERSTAG","FREITAG","SAMSTAG","SONNTAG"]
[null,{"$f":"IF(WEEKDAY(DATEVALUE( \" 1 \"&MoMonat&MoJahr),2)=COLUMN(A$2),1,IF(LEN(A6)>0,A6+1,\"\"))","v":""},"","",1,2,3,4]
[null,{"$f":"IF(LEN(B6)=0,\"\",IF(COUNTIF(Aufgaben[FÄLLIGKEITSDATUM],DATE(MoJahr,MoMonatNum,B6))>0,\"Aufgabe fällig!\",\"\"))","v":""},{"$f":"IF(LEN(C6)=0,\"\",IF(COUNTIF(Aufgaben[FÄLLIGKEITSDATUM],DATE(MoJahr,MoMonatNum,C6))>0,\"Aufgabe fällig!\",\"\"))","v":""},{"$f":"IF(LEN(D6)=0,\"\",IF(COUNTIF(Aufgaben[FÄLLIGKEITSDATUM],DATE(MoJahr,MoMonatNum,D6))>0,\"Aufgabe fällig!\",\"\"))","v":""},{"$f":"IF(LEN(E6)=0,\"\",IF(COUNTIF(Aufgaben[FÄLLIGKEITSDATUM],DATE(MoJahr,MoMonatNum,E6))>0,\"Aufgabe fällig!\",\"\"))","v":""},{"$f":"IF(LEN(F6)=0,\"\",IF(COUNTIF(Aufgaben[FÄLLIGKEITSDATUM],DATE(MoJahr,MoMonatNum,F6))>0,\"Aufgabe fällig!\",\"\"))","v":""},{"$f":"IF(LEN(G6)=0,\"\",IF(COUNTIF(Aufgaben[FÄLLIGKEITSDATUM],DATE(MoJahr,MoMonatNum,G6))>0,\"Aufgabe fällig!\",\"\"))","v":""},{"$f":"IF(LEN(H6)=0,\"\",IF(COUNTIF(Aufgaben[FÄLLIGKEITSDATUM],DATE(MoJahr,MoMonatNum,H6))>0,\"Aufgabe fällig!\",\"\"))","v":""}]
[null,{"$f":"IF(LEN(H6)>0,IF(H6=DAY(DATE(MoJahr,MoMonatNum+1,0)),\"\",H6+1),\"\")","v":5},{"$f":"IF(LEN(B8)>0,IF(B8=DAY(DATE(MoJahr,MoMonatNum+1,0)),\"\",B8+1),\"\")","v":6},7,8,9,10,11]
[null,{"$f":"IF(LEN(B8)=0,\"\",IF(COUNTIF(Aufgaben[FÄLLIGKEITSDATUM],DATE(MoJahr,MoMonatNum,B8))>0,\"Aufgabe fällig!\",\"\"))","v":""},{"$f":"IF(LEN(C8)=0,\"\",IF(COUNTIF(Aufgaben[FÄLLIGKEITSDATUM],DATE(MoJahr,MoMonatNum,C8))>0,\"Aufgabe fällig!\",\"\"))","v":""},{"$f":"IF(LEN(D8)=0,\"\",IF(COUNTIF(Aufgaben[FÄLLIGKEITSDATUM],DATE(MoJahr,MoMonatNum,D8))>0,\"Aufgabe fällig!\",\"\"))","v":""},{"$f":"IF(LEN(E8)=0,\"\",IF(COUNTIF(Aufgaben[FÄLLIGKEITSDATUM],DATE(MoJahr,MoMonatNum,E8))>0,\"Aufgabe fällig!\",\"\"))","v":""},{"$f":"IF(LEN(F8)=0,\"\",IF(COUNTIF(Aufgaben[FÄLLIGKEITSDATUM],DATE(MoJahr,MoMonatNum,F8))>0,\"Aufgabe fällig!\",\"\"))","v":"Aufgabe fällig!"},{"$f":"IF(LEN(G8)=0,\"\",IF(COUNTIF(Aufgaben[FÄLLIGKEITSDATUM],DATE(MoJahr,MoMonatNum,G8))>0,\"Aufgabe fällig!\",\"\"))","v":""},{"$f":"IF(LEN(H8)=0,\"\",IF(COUNTIF(Aufgaben[FÄLLIGKEITSDATUM],DATE(MoJahr,MoMonatNum,H8))>0,\"Aufgabe fällig!\",\"\"))","v":""}]
[null,{"$f":"IF(LEN(H8)>0,IF(H8=DAY(DATE(MoJahr,MoMonatNum+1,0)),\"\",H8+1),\"\")","v":12},{"$f":"IF(LEN(B10)>0,IF(B10=DAY(DATE(MoJahr,MoMonatNum+1,0)),\"\",B10+1),\"\")","v":13},14,15,16,17,18]
[null,{"$f":"IF(LEN(B10)=0,\"\",IF(COUNTIF(Aufgaben[FÄLLIGKEITSDATUM],DATE(MoJahr,MoMonatNum,B10))>0,\"Aufgabe fällig!\",\"\"))","v":""},{"$f":"IF(LEN(C10)=0,\"\",IF(COUNTIF(Aufgaben[FÄLLIGKEITSDATUM],DATE(MoJahr,MoMonatNum,C10))>0,\"Aufgabe fällig!\",\"\"))","v":""},{"$f":"IF(LEN(D10)=0,\"\",IF(COUNTIF(Aufgaben[FÄLLIGKEITSDATUM],DATE(MoJahr,MoMonatNum,D10))>0,\"Aufgabe fällig!\",\"\"))","v":""},{"$f":"IF(LEN(E10)=0,\"\",IF(COUNTIF(Aufgaben[FÄLLIGKEITSDATUM],DATE(MoJahr,MoMonatNum,E10))>0,\"Aufgabe fällig!\",\"\"))","v":""},{"$f":"IF(LEN(F10)=0,\"\",IF(COUNTIF(Aufgaben[FÄLLIGKEITSDATUM],DATE(MoJahr,MoMonatNum,F10))>0,\"Aufgabe fällig!\",\"\"))","v":""},{"$f":"IF(LEN(G10)=0,\"\",IF(COUNTIF(Aufgaben[FÄLLIGKEITSDATUM],DATE(MoJahr,MoMonatNum,G10))>0,\"Aufgabe fällig!\",\"\"))","v":""},{"$f":"IF(LEN(H10)=0,\"\",IF(COUNTIF(Aufgaben[FÄLLIGKEITSDATUM],DATE(MoJahr,MoMonatNum,H10))>0,\"Aufgabe fällig!\",\"\"))","v":""}]
[null,{"$f":"IF(LEN(H10)>0,IF(H10=DAY(DATE(MoJahr,MoMonatNum+1,0)),\"\",H10+1),\"\")","v":19},{"$f":"IF(LEN(B12)>0,IF(B12=DAY(DATE(MoJahr,MoMonatNum+1,0)),\"\",B12+1),\"\")","v":20},21,22,23,24,25]
[null,{"$f":"IF(LEN(B12)=0,\"\",IF(COUNTIF(Aufgaben[FÄLLIGKEITSDATUM],DATE(MoJahr,MoMonatNum,B12))>0,\"Aufgabe fällig!\",\"\"))","v":""},{"$f":"IF(LEN(C12)=0,\"\",IF(COUNTIF(Aufgaben[FÄLLIGKEITSDATUM],DATE(MoJahr,MoMonatNum,C12))>0,\"Aufgabe fällig!\",\"\"))","v":""},{"$f":"IF(LEN(D12)=0,\"\",IF(COUNTIF(Aufgaben[FÄLLIGKEITSDATUM],DATE(MoJahr,MoMonatNum,D12))>0,\"Aufgabe fällig!\",\"\"))","v":""},{"$f":"IF(LEN(E12)=0,\"\",IF(COUNTIF(Aufgaben[FÄLLIGKEITSDATUM],DATE(MoJahr,MoMonatNum,E12))>0,\"Aufgabe fällig!\",\"\"))","v":""},{"$f":"IF(LEN(F12)=0,\"\",IF(COUNTIF(Aufgaben[FÄLLIGKEITSDATUM],DATE(MoJahr,MoMonatNum,F12))>0,\"Aufgabe fällig!\",\"\"))","v":""},{"$f":"IF(LEN(G12)=0,\"\",IF(COUNTIF(Aufgaben[FÄLLIGKEITSDATUM],DATE(MoJahr,MoMonatNum,G12))>0,\"Aufgabe fällig!\",\"\"))","v":"Aufgabe fällig!"},{"$f":"IF(LEN(H12)=0,\"\",IF(COUNTIF(Aufgaben[FÄLLIGKEITSDATUM],DATE(MoJahr,MoMonatNum,H12))>0,\"Aufgabe fällig!\",\"\"))","v":""}]
[null,{"$f":"IF(LEN(H12)>0,IF(H12=DAY(DATE(MoJahr,MoMonatNum+1,0)),\"\",H12+1),\"\")","v":26},{"$f":"IF(LEN(B14)>0,IF(B14=DAY(DATE(MoJahr,MoMonatNum+1,0)),\"\",B14+1),\"\")","v":27},28,29,30,31,""]
[null,{"$f":"IF(LEN(B14)=0,\"\",IF(COUNTIF(Aufgaben[FÄLLIGKEITSDATUM],DATE(MoJahr,MoMonatNum,B14))>0,\"Aufgabe fällig!\",\"\"))","v":""},{"$f":"IF(LEN(C14)=0,\"\",IF(COUNTIF(Aufgaben[FÄLLIGKEITSDATUM],DATE(MoJahr,MoMonatNum,C14))>0,\"Aufgabe fällig!\",\"\"))","v":""},{"$f":"IF(LEN(D14)=0,\"\",IF(COUNTIF(Aufgaben[FÄLLIGKEITSDATUM],DATE(MoJahr,MoMonatNum,D14))>0,\"Aufgabe fällig!\",\"\"))","v":""},{"$f":"IF(LEN(E14)=0,\"\",IF(COUNTIF(Aufgaben[FÄLLIGKEITSDATUM],DATE(MoJahr,MoMonatNum,E14))>0,\"Aufgabe fällig!\",\"\"))","v":""},{"$f":"IF(LEN(F14)=0,\"\",IF(COUNTIF(Aufgaben[FÄLLIGKEITSDATUM],DATE(MoJahr,MoMonatNum,F14))>0,\"Aufgabe fällig!\",\"\"))","v":""},{"$f":"IF(LEN(G14)=0,\"\",IF(COUNTIF(Aufgaben[FÄLLIGKEITSDATUM],DATE(MoJahr,MoMonatNum,G14))>0,\"Aufgabe fällig!\",\"\"))","v":""},{"$f":"IF(LEN(H14)=0,\"\",IF(COUNTIF(Aufgaben[FÄLLIGKEITSDATUM],DATE(MoJahr,MoMonatNum,H14))>0,\"Aufgabe fällig!\",\"\"))","v":""}]
[null,{"$f":"IF(LEN(H14)>0,IF(H14=DAY(DATE(MoJahr,MoMonatNum+1,0)),\"\",H14+1),\"\")","v":""},{"$f":"IF(LEN(B16)>0,IF(B16=DAY(DATE(MoJahr,MoMonatNum+1,0)),\"\",B16+1),\"\")","v":""},"","","","",""]
[null,{"$f":"IF(LEN(B16)=0,\"\",IF(COUNTIF(Aufgaben[FÄLLIGKEITSDATUM],DATE(MoJahr,MoMonatNum,B16))>0,\"Aufgabe fällig!\",\"\"))","v":""},{"$f":"IF(LEN(C16)=0,\"\",IF(COUNTIF(Aufgaben[FÄLLIGKEITSDATUM],DATE(MoJahr,MoMonatNum,C16))>0,\"Aufgabe fällig!\",\"\"))","v":""},{"$f":"IF(LEN(D16)=0,\"\",IF(COUNTIF(Aufgaben[FÄLLIGKEITSDATUM],DATE(MoJahr,MoMonatNum,D16))>0,\"Aufgabe fällig!\",\"\"))","v":""},{"$f":"IF(LEN(E16)=0,\"\",IF(COUNTIF(Aufgaben[FÄLLIGKEITSDATUM],DATE(MoJahr,MoMonatNum,E16))>0,\"Aufgabe fällig!\",\"\"))","v":""},{"$f":"IF(LEN(F16)=0,\"\",IF(COUNTIF(Aufgaben[FÄLLIGKEITSDATUM],DATE(MoJahr,MoMonatNum,F16))>0,\"Aufgabe fällig!\",\"\"))","v":""},{"$f":"IF(LEN(G16)=0,\"\",IF(COUNTIF(Aufgaben[FÄLLIGKEITSDATUM],DATE(MoJahr,MoMonatNum,G16))>0,\"Aufgabe fällig!\",\"\"))","v":""},{"$f":"IF(LEN(H16)=0,\"\",IF(COUNTIF(Aufgaben[FÄLLIGKEITSDATUM],DATE(MoJahr,MoMonatNum,H16))>0,\"Aufgabe fällig!\",\"\"))","v":""}]

{"sheet":"Wochenansicht","index":2,"n_rows":17,"n_cols":8,"rows_kept":17}
[null,"AUFGABEN","MONATSANSICHT"]
[null,"Monat auswählen:","Jahr eingeben:","Wochen-Nr. auswählen:"]
[null,"September",{"$f":"YEAR(TODAY())","v":2022},"Woche 1"]
[null," WOCHENANSICHT"]
[null,{"$f":"IF(WEEKDAY(DATEVALUE(\" 1 \"&WeMonat&WeJahr),2)=COLUMN(A$2),1,IF(LEN(A5)>0,A5+1,\"\"))","v":""},"","",1,2,3,4]
[null,{"$f":"IF(LEN(H5)>0,IF(H5=LetzterTagMonat_Woche,\"\",H5+1),\"\")","v":5},{"$f":"IF(LEN(B6)>0,IF(B6=LetzterTagMonat_Woche,\"\",B6+1),\"\")","v":6},7,8,9,10,11]
[null,{"$f":"IF(LEN(H6)>0,IF(H6=LetzterTagMonat_Woche,\"\",H6+1),\"\")","v":12},13,14,15,16,17,18]
[null,{"$f":"IF(LEN(H7)>0,IF(H7=LetzterTagMonat_Woche,\"\",H7+1),\"\")","v":19},20,21,22,23,24,25]
[null,{"$f":"IF(LEN(H8)>0,IF(H8=LetzterTagMonat_Woche,\"\",H8+1),\"\")","v":26},27,28,29,30,"",""]
[null,{"$f":"IF(LEN(H9)>0,IF(H9=LetzterTagMonat_Woche,\"\",H9+1),\"\")","v":""},"","","","","",""]
[null,"MONTAG","DIENSTAG","MITTWOCH","DONNERSTAG","FREITAG","SAMSTAG","SONNTAG"]
[null,{"$f":"IF(B14=\"\",IF(AND(ISNUMBER(A12),A12<LetzterTagMonat_Woche),A12+1,\"\"),IF(B14<=7,\"\",INDEX(WeMonatsansicht,WeWoche,COLUMN(A$2))-7))","v":""},"","","","","",""]
[null,{"$f":"IF(LEN(B12)=0,\"\",IF(COUNTIF(Aufgaben[FÄLLIGKEITSDATUM],DATE(WeJahr,WeMonatNum,B12))>0,\"Assignment due!\",\"\"))","v":""},{"$f":"IF(LEN(C12)=0,\"\",IF(COUNTIF(Aufgaben[FÄLLIGKEITSDATUM],DATE(WeJahr,WeMonatNum,C12))>0,\"Assignment due!\",\"\"))","v":""},{"$f":"IF(LEN(D12)=0,\"\",IF(COUNTIF(Aufgaben[FÄLLIGKEITSDATUM],DATE(WeJahr,WeMonatNum,D12))>0,\"Assignment due!\",\"\"))","v":""},{"$f":"IF(LEN(E12)=0,\"\",IF(COUNTIF(Aufgaben[FÄLLIGKEITSDATUM],DATE(WeJahr,WeMonatNum,E12))>0,\"Assignment due!\",\"\"))","v":""},{"$f":"IF(LEN(F12)=0,\"\",IF(COUNTIF(Aufgaben[FÄLLIGKEITSDATUM],DATE(WeJahr,WeMonatNum,F12))>0,\"Assignment due!\",\"\"))","v":""},{"$f":"IF(LEN(G12)=0,\"\",IF(COUNTIF(Aufgaben[FÄLLIGKEITSDATUM],DATE(WeJahr,WeMonatNum,G12))>0,\"Assignment due!\",\"\"))","v":""},{"$f":"IF(LEN(H12)=0,\"\",IF(COUNTIF(Aufgaben[FÄLLIGKEITSDATUM],DATE(WeJahr,WeMonatNum,H12))>0,\"Assignment due!\",\"\"))","v":""}]
[null,{"$f":"INDEX(WeMonatsansicht,WeWoche,COLUMN(A$2))","v":""},{"$f":"INDEX(WeMonatsansicht,WeWoche,COLUMN(B$2))","v":""},{"$f":"INDEX(WeMonatsansicht,WeWoche,COLUMN(C$2))","v":""},{"$f":"INDEX(WeMonatsansicht,WeWoche,COLUMN(D$2))","v":1},{"$f":"INDEX(WeMonatsansicht,WeWoche,COLUMN(E$2))","v":2},{"$f":"INDEX(WeMonatsansicht,WeWoche,COLUMN(F$2))","v":3},{"$f":"INDEX(WeMonatsansicht,WeWoche,COLUMN(G$2))","v":4}]
[null,{"$f":"IF(LEN(B14)=0,\"\",IF(COUNTIF(Aufgaben[FÄLLIGKEITSDATUM],DATE(WeJahr,WeMonatNum,B14))>0,\"Assignment due!\",\"\"))","v":""},{"$f":"IF(LEN(C14)=0,\"\",IF(COUNTIF(Aufgaben[FÄLLIGKEITSDATUM],DATE(WeJahr,WeMonatNum,C14))>0,\"Assignment due!\",\"\"))","v":""},{"$f":"IF(LEN(D14)=0,\"\",IF(COUNTIF(Aufgaben[FÄLLIGKEITSDATUM],DATE(WeJahr,WeMonatNum,D14))>0,\"Assignment due!\",\"\"))","v":""},{"$f":"IF(LEN(E14)=0,\"\",IF(COUNTIF(Aufgaben[FÄLLIGKEITSDATUM],DATE(WeJahr,WeMonatNum,E14))>0,\"Assignment due!\",\"\"))","v":""},{"$f":"IF(LEN(F14)=0,\"\",IF(COUNTIF(Aufgaben[FÄLLIGKEITSDATUM],DATE(WeJahr,WeMonatNum,F14))>0,\"Assignment due!\",\"\"))","v":""},{"$f":"IF(LEN(G14)=0,\"\",IF(COUNTIF(Aufgaben[FÄLLIGKEITSDATUM],DATE(WeJahr,WeMonatNum,G14))>0,\"Assignment due!\",\"\"))","v":""},{"$f":"IF(LEN(H14)=0,\"\",IF(COUNTIF(Aufgaben[FÄLLIGKEITSDATUM],DATE(WeJahr,WeMonatNum,H14))>0,\"Assignment due!\",\"\"))","v":""}]
[null,{"$f":"IFERROR(IF(B14=\"\",IF(AND(ISNUMBER(A16),A16<LetzterTagMonat_Woche),A16+1,$H$14+COLUMN(A$2)),IF(B14+7>LetzterTagMonat_Woche,\"\",INDEX(WeMonatsansicht,WeWoche,COLUMN(A$2))+7)),\"\")","v":5},{"$f":"IFERROR(IF(C14=\"\",IF(AND(ISNUMBER(B16),B16<LetzterTagMonat_Woche),B16+1,$H$14+COLUMN(B$2)),IF(C14+7>LetzterTagMonat_Woche,\"\",INDEX(WeMonatsansicht,WeWoche,COLUMN(B$2))+7)),\"\")","v":6},{"$f":"IFERROR(IF(D14=\"\",IF(AND(ISNUMBER(C16),C16<LetzterTagMonat_Woche),C16+1,$H$14+COLUMN(C$2)),IF(D14+7>LetzterTagMonat_Woche,\"\",INDEX(WeMonatsansicht,WeWoche,COLUMN(C$2))+7)),\"\")","v":7},{"$f":"IFERROR(IF(E14=\"\",IF(AND(ISNUMBER(D16),D16<LetzterTagMonat_Woche),D16+1,$H$14+COLUMN(D$2)),IF(E14+7>LetzterTagMonat_Woche,\"\",INDEX(WeMonatsansicht,WeWoche,COLUMN(D$2))+7)),\"\")","v":8},{"$f":"IFERROR(IF(F14=\"\",IF(AND(ISNUMBER(E16),E16<LetzterTagMonat_Woche),E16+1,$H$14+COLUMN(E$2)),IF(F14+7>LetzterTagMonat_Woche,\"\",INDEX(WeMonatsansicht,WeWoche,COLUMN(E$2))+7)),\"\")","v":9},{"$f":"IFERROR(IF(G14=\"\",IF(AND(ISNUMBER(F16),F16<LetzterTagMonat_Woche),F16+1,$H$14+COLUMN(F$2)),IF(G14+7>LetzterTagMonat_Woche,\"\",INDEX(WeMonatsansicht,WeWoche,COLUMN(F$2))+7)),\"\")","v":10},{"$f":"IFERROR(IF(H14=\"\",IF(AND(ISNUMBER(G16),G16<LetzterTagMonat_Woche),G16+1,$H$14+COLUMN(G$2)),IF(H14+7>LetzterTagMonat_Woche,\"\",INDEX(WeMonatsansicht,WeWoche,COLUMN(G$2))+7)),\"\")","v":11}]
[null,{"$f":"IF(LEN(B16)=0,\"\",IF(COUNTIF(Aufgaben[FÄLLIGKEITSDATUM],DATE(WeJahr,WeMonatNum,B16))>0,\"Assignment due!\",\"\"))","v":""},{"$f":"IF(LEN(C16)=0,\"\",IF(COUNTIF(Aufgaben[FÄLLIGKEITSDATUM],DATE(WeJahr,WeMonatNum,C16))>0,\"Assignment due!\",\"\"))","v":""},{"$f":"IF(LEN(D16)=0,\"\",IF(COUNTIF(Aufgaben[FÄLLIGKEITSDATUM],DATE(WeJahr,WeMonatNum,D16))>0,\"Assignment due!\",\"\"))","v":""},{"$f":"IF(LEN(E16)=0,\"\",IF(COUNTIF(Aufgaben[FÄLLIGKEITSDATUM],DATE(WeJahr,WeMonatNum,E16))>0,\"Assignment due!\",\"\"))","v":""},{"$f":"IF(LEN(F16)=0,\"\",IF(COUNTIF(Aufgaben[FÄLLIGKEITSDATUM],DATE(WeJahr,WeMonatNum,F16))>0,\"Assignment due!\",\"\"))","v":""},{"$f":"IF(LEN(G16)=0,\"\",IF(COUNTIF(Aufgaben[FÄLLIGKEITSDATUM],DATE(WeJahr,WeMonatNum,G16))>0,\"Assignment due!\",\"\"))","v":""},{"$f":"IF(LEN(H16)=0,\"\",IF(COUNTIF(Aufgaben[FÄLLIGKEITSDATUM],DATE(WeJahr,WeMonatNum,H16))>0,\"Assignment due!\",\"\"))","v":""}]